[Event "Lliga Catalana 2024"]
[Site "Catalonia"]
[Date "2024.02.17"]
[Round "5.2"]
[White "Zhukov, Dmitry"]
[Black "Pomes Marcet, Joan"]
[Result "0-1"]
[ECO "C19"]
[WhiteElo "2308"]
[BlackElo "2236"]
[Annotator "TA"]
[PlyCount "122"]
[EventDate "2024.01.18"]
[EventType "team-tourn"]
[EventCountry "ESP"]
[SourceTitle "playchess.com"]
[Source "ChessBase"]
[SourceQuality "1"]
[TimeControl "5400+30"]

{[%evp 22,122,6,6,6,0,0,0,0,0,0,-20,-24,-28,25,0,25,25,25,24,47,0,24,24,52,2,2,0,59,24,34,0,39,39,62,24,58,23,51,16,18,12,16,0,0,0,0,0,0,0,17,0,-7,0,78,78,164,117,133,131,289,122,133,135,123,122,137,117,122,128,168,99,125,55,56,47,48,53,78,77,73,51,40,41,58,0,86,0,0,-100,-107,-101,-101,-181,-170,-462,-446,-474,-466,-2529,-2474,-29981,-29982]} 1. e4 {[%emt 0:00:06]} e6 {[%emt 0:00:10]} 2. d4 {[%emt 0:00:08]} d5 {[%emt 0:00:06]} 3. Nc3 {[%emt 0:00:15]} Bb4 {[%emt 0:00:16]} 4. e5 {[%emt 0:00:15]} c5 {[%emt 0:00:38]} 5. a3 {[%emt 0:00:09]} Bxc3+ {[%emt 0:00:08]} 6. bxc3 {[%emt 0:00:05]} Qa5 {[%emt 0:00:20]} 7. Bd2 {[%emt 0:00:22]} Qa4 {[%emt 0:00:08]} 8. Nf3 {[%emt 0:01:13]} c4 {[%emt 0:04:35]} 9. g3 {[%emt 0:03:12]} Nc6 {[%emt 0:00:36]} 10. Bh3 {[%emt 0:02:16]} Nge7 {[%emt 0:01:25]} 11. O-O {[%emt 0:00:37]} Bd7 {[%emt 0:04:40]} 12. Nh4 {[%emt 0:02:33]} O-O-O {[%emt 0:02:28]} 13. f4 {[%emt 0:04:19]} g6 {[%emt 0:03:12]} 14. Nf3 {[%emt 0:00:35]} h6 {[%emt 0:01:03]} 15. Bg2 {[%emt 0:04:39]} Kb8 {[%emt 0:02:24]} 16. h4 {[%emt 0:10:10]} Nc8 {[%emt 0:12:00]} 17. Qc1 {[%emt 0:02:02]} a6 {[%emt 0:05:37]} (17... N6e7 $142) 18. Qb2 {[%emt 0:01:28]} N8a7 {[%emt 0:01:35]} 19. Rfb1 {[%emt 0:00:33]} Bc8 {[%emt 0:04:02]} 20. Kh2 {[%emt 0:10:34]} (20. Qb6 {looks sharper.} Rd7 21. Ra2 Rc7 22. Qb2) 20... Ka8 {[%emt 0:07:52]} 21. Qc1 {[%emt 0:04:51]} (21. Qb6 $14) 21... h5 {[%emt 0:08:05]} 22. Rb2 {[%emt 0:03:45]} Rd7 {[%emt 0:01:09]} 23. Kg1 {[%emt 0:00:47]} (23. Ng5 $14) 23... Rc7 $11 {[%emt 0:00:46]} 24. Kf2 {[%emt 0:00:39]} Rd7 {[%emt 0:02:15]} (24... Ne7 $11) 25. Qb1 {[%emt 0:04:02]} Rc7 {[%emt 0:00:28]} 26. Kg1 {[%emt 0:03:14]} Rd7 {[%emt 0:00:38]} 27. Ng5 {[%emt 0:07:01]} Rc7 {[%emt 0:01:01]} 28. f5 {[%emt 0:02:01]} gxf5 {[%emt 0:00:38]} 29. Nh3 {[%emt 0:00:04]} Nb5 {[%emt 0:06:27]} 30. Rb4 {[%emt 0:01:51]} Qa5 $1 {[%emt 0:00:12]} (30... Nxb4 $2 31. axb4 Na3 32. Qc1 $18) 31. a4 $1 {[%emt 0:00:25]} Nba7 {[%emt 0:00:34]} 32. Nf4 {[%emt 0:04:37]} (32. Bf3 $5) 32... Nxb4 {[%emt 0:01:16]} 33. cxb4 {[%emt 0:02:27]} Qb6 {[%emt 0:00:08]} 34. c3 {[%emt 0:00:11]} Nc6 {[%emt 0:05:57]} 35. Qe1 {[%emt 0:02:40]} Rd7 {[%emt 0:06:03]} 36. Kh2 {[%emt 0:00:25]} Ne7 {[%emt 0:00:45]} 37. Bf3 {[%emt 0:00:10]} Ng6 {[%emt 0:02:20]} (37... Rdd8 $11 {remains equal.}) 38. Nxh5 $16 {[%emt 0:00:40]} f4 {[%emt 0:00:52]} (38... a5 $16) 39. Nxf4 {[%emt 0:02:17]} (39. gxf4 Qd8 40. Kh3 f6 $17) ({White should play} 39. Bxf4 $18 Nxf4 40. Nxf4) 39... Nxf4 {[%emt 0:04:19]} 40. Bxf4 {[%emt 0:00:10]} Rdd8 $2 {[%emt 0:01:31]} (40... Qd8 $16 41. Qe3 f5) 41. h5 {[%emt 0:00:56]} (41. Qe3 $18 {and White stays clearly on top.}) 41... Rdg8 $16 {[%emt 0:00:23]} 42. Qe3 {[%emt 0:01:25]} Qd8 {[%emt 0:00:30]} 43. Kg2 {[%emt 0:00:35]} Bd7 {[%emt 0:00:22] [#]} 44. Kf2 $1 {[%emt 0:00:55]} Qe8 {[%emt 0:01:23]} 45. b5 {[%emt 0:02:06]} Ka7 {[%emt 0:01:25] [#]} 46. g4 {[%emt 0:00:32]} (46. Bg5 $1 $18) 46... Qe7 $16 {[%emt 0:02:06]} 47. g5 {[%emt 0:00:39]} (47. Qd2 $16) 47... axb5 $1 $14 {[%emt 0:00:11]} 48. axb5+ {[%emt 0:00:06]} Kb6 {[%emt 0:00:04]} 49. h6 {[%emt 0:06:02]} Bxb5 {[%emt 0:01:39]} 50. Qd2 {[%emt 0:01:31]} (50. Qc1 {is more complex.} Ra8 51. Qb2 Ra6 52. Rb1) 50... Ra8 {[%emt 0:00:15]} 51. Rxa8 {[%emt 0:02:26]} (51. Qb2 {with more complications.} Ra6 52. Rb1 Ra5 53. Kg3) 51... Rxa8 {[%emt 0:00:02]} 52. Bh5 {[%emt 0:00:24]} (52. Qb2 {keeps more tension.} Kc6 53. Kg3 Rg8 54. Kh4) 52... Rg8 {[%emt 0:02:04]} 53. Bd1 {[%emt 0:01:19]} ({White should try} 53. Kg3 $14) 53... Be8 {[%emt 0:02:20]} ({Much weaker is} 53... Rh8 $6 54. Qb2 $16) (53... Qa3 $11) 54. Bc2 {[%emt 0:00:53]} (54. Qb2+ $16 Kc6 55. Bc2) 54... Qa3 $11 {[%emt 0:00:59]} 55. g6 {[%emt 0:06:46]} (55. Bb1 $11 {keeps the balance.}) 55... fxg6 $17 {[%emt 0:00:09]} 56. Bg5 {[%emt 0:00:06]} ({Wrong is} 56. h7 $2 Rh8 57. Bd1 Rxh7 $19) 56... Rh8 {[%emt 0:01:27]} 57. Bd8+ {[%emt 0:00:28]} (57. Bd1 $17 {keeps fighting.}) 57... Ka7 {[%emt 0:00:23]} 58. Bf6 $2 {[%emt 0:00:07]} (58. Kg2) 58... Qf8 $19 {[%emt 0:00:20]} 59. Bd1 {[%emt 0:04:22]} Qxh6 {[%emt 0:01:30]} (59... Rxh6 60. Qa2+ Kb8 61. Qa5 $19) 60. Qa2+ {[%emt 0:00:33]} (60. Qxh6 $142 Rxh6 61. Kg2) 60... Kb8 $19 {[%emt 0:00:10]} 61. Bxh8 {[%emt 0:00:28]} Qh2+ {[%emt 0:04:39]} ({Less strong is} 61... Qxh8 62. Qa3 $17) 0-1

[Event "Lliga Catalana 2024"]
[Site "Catalonia"]
[Date "2024.02.17"]
[Round "5.3"]
[White "Pereira, Ruben"]
[Black "Chigaev, Maksim"]
[Result "1/2-1/2"]
[ECO "C47"]
[WhiteElo "2444"]
[BlackElo "2622"]
[Annotator "TA"]
[PlyCount "113"]
[EventDate "2024.01.18"]
[EventType "team-tourn"]
[EventCountry "ESP"]
[SourceTitle "playchess.com"]
[Source "ChessBase"]
[SourceQuality "1"]
[TimeControl "5400+30"]

{[%evp 43,113,-25,-36,-37,-14,-61,-10,-20,-23,-28,0,-31,-5,-26,-24,-25,0,0,189,174,206,195,224,238,306,310,362,351,299,76,78,79,68,77,89,83,114,55,53,75,58,62,73,0,0,0,0,0,0,0,0,0,0,0,0,0,8,0,8,0,0,0,8,8,8,8,8,0,0,0,0,0]} 1. e4 {[%emt 0:00:03]} e5 {[%emt 0:02:03]} 2. Nf3 {[%emt 0:00:38]} Nc6 {[%emt 0:00:07]} 3. Nc3 {[%emt 0:00:17]} Nf6 {[%emt 0:01:28]} 4. h3 {[%emt 0:00:55]} Bb4 {[%emt 0:06:01]} 5. Nd5 {[%emt 0:01:09]} Be7 {[%emt 0:02:25]} 6. d3 {[%emt 0:02:29] C47: Scotch Four Knights and Four Knights with 4 g3.} O-O {[%emt 0:01:53]} 7. c3 {[%emt 0:01:00]} d6 {[%emt 0:00:59]} 8. Be2 $146 {[%emt 0:01:15]} ({Predecessor:} 8. Nxe7+ Nxe7 9. g3 Ng6 10. Bg2 d5 11. exd5 Qxd5 12. O-O Bf5 13. Re1 Qxd3 14. Qxd3 Bxd3 15. Nxe5 Nxe5 16. Rxe5 {½-½ Shimanov,A (2616)-Vidit,S (2659) Wch Rapid Almaty 2022 (4)}) 8... Nxd5 {[%emt 0:01:00]} 9. exd5 {[%emt 0:00:05]} Nb8 {[%emt 0:00:04]} 10. O-O {[%emt 0:05:55]} Nd7 {[%emt 0:01:49]} 11. d4 {[%emt 0:03:26]} e4 {[%emt 0:01:06]} 12. Nh2 {[%emt 0:00:54]} Nf6 {[%emt 0:04:00]} 13. f3 {[%emt 0:05:51]} c6 {[%emt 0:03:03]} 14. dxc6 {[%emt 0:08:02]} bxc6 {[%emt 0:00:11]} 15. Bg5 {[%emt 0:03:01]} Rb8 {[%emt 0:05:37]} 16. Qd2 {[%emt 0:12:54]} d5 {[%emt 0:13:15]} 17. Bf4 {[%emt 0:05:23]} Bd6 {[%emt 0:01:28]} 18. b3 {[%emt 0:09:43]} h6 {[%emt 0:17:47]} 19. Ng4 {[%emt 0:08:52]} Bxg4 {[%emt 0:01:22]} 20. fxg4 {[%emt 0:02:32]} Bxf4 {[%emt 0:00:30]} 21. Qxf4 {[%emt 0:00:13]} a5 {[%emt 0:00:38]} 22. Rf2 {[%emt 0:04:31]} Nh7 {[%emt 0:01:24]} 23. Raf1 {[%emt 0:00:29]} Qe7 {[%emt 0:00:14]} 24. Qe3 {[%emt 0:03:22]} (24. Qg3 $1 $11) 24... Rbc8 {[%emt 0:03:07]} ({Black should play} 24... Ng5 $15) 25. c4 $11 {[%emt 0:01:00]} Rcd8 {[%emt 0:02:33]} 26. Rf5 {[%emt 0:02:16]} Qa3 {[%emt 0:02:29]} 27. Qd2 {[%emt 0:03:28]} g6 {[%emt 0:10:21]} 28. R5f2 {[%emt 0:01:48]} Kg7 {[%emt 0:00:31]} 29. h4 {[%emt 0:02:19]} a4 {[%emt 0:02:17]} 30. Qa5 {[%emt 0:02:42]} Rde8 $2 {[%emt 0:08:34]} (30... Qxa2 31. Qa7 Kg8 (31... axb3 32. Rxf7+ Rxf7 33. Rxf7+ Kg8 34. Rg7+ Kh8 35. Rxh7+ Kg8 36. Qg7#) 32. Rxf7 Rxf7 33. Rxf7 (33. Qxf7+ Kh8 $18) 33... Qa1+ 34. Kh2 $18) (30... Rd7 $11 {and Black is okay.}) 31. cxd5 $18 {[%emt 0:02:21]} (31. Qxa4 Qxa4 32. bxa4 Re7 $16) 31... e3 {[%emt 0:03:10]} 32. Rf3 {[%emt 0:00:04]} cxd5 {[%emt 0:01:40]} (32... Qxa2 $2 33. Qc7 Kh8 34. Rxf7 Rxf7 35. Rxf7 (35. Qxf7 Rf8 $11) 35... Qa1+ 36. Kh2 $18) 33. Qxd5 {[%emt 0:00:33]} ({Not} 33. Qxa4 Qe7 $14) 33... f6 {[%emt 0:00:12]} 34. bxa4 {[%emt 0:03:20]} Qxa4 {[%emt 0:00:23]} 35. Bb5 {[%emt 0:00:24]} Qa5 {[%emt 0:00:01]} 36. Qb7+ $2 {[%emt 0:03:08]} (36. Qd7+ $18 Kg8 37. Bd3 (37. Qxe8 $2 {too greedy.} Rxe8 38. Bxe8 e2 $19)) 36... Rf7 $16 {[%emt 0:00:29]} 37. Qa6 $1 {[%emt 0:00:27]} ({Of course not} 37. Qc6 Ree7 38. Qa6 Qd2 $11) 37... Qxa6 {[%emt 0:00:58]} 38. Bxa6 {[%emt 0:00:01]} Re4 {[%emt 0:00:21]} 39. Rf4 $1 {[%emt 0:01:09]} Rfe7 {[%emt 0:03:10] [#]} 40. Be2 {[%emt 0:00:06]} (40. Rxe4 $1 $16 Rxe4 41. Re1) 40... Rxf4 $14 {[%emt 0:00:12]} 41. Rxf4 {[%emt 0:00:01]} g5 {[%emt 0:00:01]} 42. hxg5 {[%emt 0:00:51]} fxg5 {[%emt 0:01:57] [#]} 43. Rf5 {[%emt 0:00:31]} ({White should try} 43. Rf1 $1 $16) 43... Nf6 $11 {[%emt 0:00:07]} 44. Re5 {[%emt 0:01:11]} Ra7 {[%emt 0:00:09]} 45. Rxe3 {[%emt 0:00:27]} Rxa2 {[%emt 0:00:02]} 46. Re7+ {[%emt 0:00:21]} Kf8 {[%emt 0:00:18]} 47. Re6 {[%emt 0:00:13]} Kg7 {[%emt 0:00:08]} 48. Bf3 {[%emt 0:00:58]} Rd2 {[%emt 0:00:30]} 49. d5 {[%emt 0:00:30]} Kf7 {[%emt 0:00:57]} 50. Ra6 {[%emt 0:00:30]} Rd4 {[%emt 0:00:51]} 51. Ra7+ {[%emt 0:01:18]} Kf8 {[%emt 0:00:18]} 52. Ra6 {[%emt 0:00:25]} Nxg4 {[%emt 0:00:23]} 53. Bxg4 {[%emt 0:00:37]} Rxg4 {[%emt 0:00:01]} 54. Rxh6 {[%emt 0:00:07]} Rd4 {[%emt 0:00:04]} 55. Rd6 {[%emt 0:01:09]} Ke7 {[%emt 0:00:02]} 56. Re6+ {[%emt 0:00:04]} Kf7 {[%emt 0:00:03]} 57. Rd6 {[%emt 0:00:37]} 1/2-1/2

[Event "Lliga Catalana 2024"]
[Site "Catalonia"]
[Date "2024.02.17"]
[Round "5.3"]
[White "Duran Albareda, Xavier"]
[Black "Benedetti, Julio"]
[Result "0-1"]
[ECO "D00"]
[WhiteElo "2283"]
[BlackElo "2252"]
[Annotator "TA"]
[PlyCount "56"]
[EventDate "2024.01.18"]
[EventType "team-tourn"]
[EventCountry "ESP"]
[SourceTitle "playchess.com"]
[Source "ChessBase"]
[SourceQuality "1"]
[TimeControl "5400+30"]

{[%evp 9,56,-11,-8,-4,-2,-14,-2,-7,-4,-29,-19,-30,-11,-28,-29,-37,0,0,0,0,0,0,0,0,0,0,0,-123,-37,-162,-155,-156,-163,-175,-175,-184,-153,-171,-176,-291,-309,-344,-340,-466,-237,-1929,-1879,-29985,-29986]} 1. d4 {[%emt 0:00:05]} d5 {[%emt 0:00:54]} 2. Nc3 {[%emt 0:00:13]} Bf5 {[%emt 0:01:49]} 3. Bf4 {[%emt 0:00:34]} e6 {[%emt 0:00:47][%cal Be7e6,Be6f5,Bf5g4][%mdl 32]} 4. e3 {[%emt 0:02:05]} Bd6 {[%emt 0:03:43]} 5. Bg3 {[%emt 0:04:48]} Nf6 {[%emt 0:03:22]} 6. Bd3 $1 {[%emt 0:01:14]} O-O {[%emt 0:03:00]} 7. Bxf5 {[%emt 0:03:47]} exf5 {[%emt 0:00:26]} 8. Nge2 {[%emt 0:00:08] The position is equal.} a5 {[%emt 0:14:35]} 9. Bh4 {[%emt 0:09:48]} c6 {[%emt 0:08:40]} 10. Qd3 {[%emt 0:12:51]} g6 {[%emt 0:00:31]} 11. g4 {[%emt 0:00:11]} fxg4 {[%emt 0:01:32]} 12. h3 {[%emt 0:00:08]} gxh3 {[%emt 0:07:05]} 13. e4 {[%emt 0:15:12]} dxe4 {[%emt 0:15:23]} 14. Nxe4 {[%emt 0:07:31]} Be7 {[%emt 0:04:59][%cal Bd6e7,Be7f6,Bf6g7][%mdl 32]} 15. Bxf6 {[%emt 0:05:36]} Bxf6 {[%emt 0:00:26]} 16. Qxh3 {[%emt 0:00:05]} h5 {[%emt 0:00:42] And now ...Re8 would win.} 17. O-O-O {[%emt 0:00:25] Nf4 is the strong threat.} Bg7 {[%emt 0:02:49]} 18. Rdg1 {[%emt 0:03:47] [#]} (18. N2g3 $11 Re8 19. Nxh5 gxh5 (19... Rxe4 20. Nxg7 Kxg7 21. f3 $16) 20. Qxh5 Rxe4 21. Rdg1 (21. Qh7+ Kf8 $15)) 18... Re8 {[%emt 0:01:50]} (18... Bxd4 19. Qxh5 Re8 20. Nxd4 Kf8 21. Rxg6 (21. Qh8+ Ke7 $18) 21... Qxd4 22. Rf6 Ke7 23. Rxf7+ (23. Qxf7+ Kd8 24. Rd6+ Qxd6 25. Nxd6 Re7 26. Nxb7+ Kd7 27. Rd1+ Kc7 28. Qxe7+ Kb6) 23... Kd8 24. Rd1) (18... a4 $1 $17 {[%cal Of8e8] Threatens to win with ...Re8!} 19. Qf3 Re8 (19... Bxd4 $2 20. Nxd4 h4 21. Ne6 $18) 20. Rxh5 Qe7 (20... gxh5 $2 21. Qg2 $18) (20... Rxe4 21. Qxe4 gxh5 22. Qe5 $11)) 19. f3 {[%emt 0:02:04] White does not recover from this.} ({White must play} 19. N2g3 $1 $15 Qxd4 20. c3 Bh6+ 21. Kb1) 19... Nd7 $36 {[%emt 0:03:42][%mdl 2048] Black has strong initiative.} (19... Bxd4 20. Nxd4 Qxd4 21. Qxh5 $18) 20. c3 {[%emt 0:04:53] Hoping for Nf4.} Nf6 {[%emt 0:00:49]} 21. N2g3 {[%emt 0:00:26][%cal Og3f5]} Kf8 {[%emt 0:10:47]} 22. Qg2 {[%emt 0:00:36]} Qd5 {[%emt 0:01:33]} 23. Kb1 {[%emt 0:00:38] [#]} b5 $1 {[%emt 0:00:20]} 24. Rh4 {[%emt 0:06:42]} (24. Nxf6 $142 Bxf6 25. Ne4) 24... b4 {[%emt 0:03:46]} 25. Rf4 {[%emt 0:00:13] [#]} bxc3 $1 {[%emt 0:07:38]} 26. Rxf6 {[%emt 0:02:28]} ({Much weaker is} 26. Nxf6 Bxf6 27. bxc3 (27. Rxf6 $2 {too greedy.} Reb8 $19) 27... Rab8+ 28. Ka1 Qc4 $19) (26. Nxc3 Qc4) 26... Qxd4 {[%emt 0:00:14]} (26... Bxf6 $142 27. Nxf6 Qxd4 28. Nxe8 Rb8 (28... Rxe8 $2 29. Rc1 $19)) 27. bxc3 {[%emt 0:00:11]} (27. Rxc6 h4 (27... cxb2 $2 28. Rd6 $19) 28. Rxc3 hxg3 29. Qxg3) 27... Rab8+ {[%emt 0:00:47]} 28. Kc1 {[%emt 0:02:16]} Qd3 {[%emt 0:02:21] Weighted Error Value: White=0.76/Black=0.20 (precise) .  Mistake:       	White=4     	Black=2      Inaccurate:     	White=2     	Black=1      OK:         	White=4     	Black=10     Best:        	White=1     	Black=4} 0-1

[Event "Lliga Catalana 2024"]
[Site "Catalonia"]
[Date "2024.02.17"]
[Round "5.4"]
[White "Khamrakulov, Ibragim S."]
[Black "Lorenzo De La Riva, Lazaro"]
[Result "1/2-1/2"]
[ECO "C07"]
[WhiteElo "2408"]
[BlackElo "2419"]
[Annotator "RC"]
[PlyCount "169"]
[EventDate "2024.01.18"]
[EventType "team-tourn"]
[EventCountry "ESP"]
[SourceTitle "playchess.com"]
[Source "ChessBase"]
[SourceQuality "1"]
[TimeControl "5400+30"]

1. e4 {[%emt 1:31:00]} e6 {[%emt 0:05:46]} 2. d4 {[%emt 0:00:00]} a6 {[%emt 0:00:06]} 3. Nf3 {[%emt 0:00:00]} d5 {[%emt 0:00:07]} 4. Nbd2 {[%emt 0:01:30]} Nf6 {[%emt 0:02:35]} 5. Bd3 {[%emt 0:00:00]} c5 {[%emt 1:24:26]} 6. exd5 {[%emt 0:00:00]} Nxd5 {[%emt 0:00:00]} 7. dxc5 {[%emt 0:00:00]} Bxc5 {[%emt 0:00:00]} 8. Ne4 {[%emt 0:00:00]} Be7 {[%emt 0:00:00]} 9. O-O {[%emt 0:00:00]} Nc6 {[%emt 0:00:00]} 10. c4 {[%emt 0:00:00]} Ndb4 {[%emt 0:00:00]} 11. Bb1 {[%emt 0:00:00]} f5 {[%emt 0:00:00]} 12. Qxd8+ {[%emt 0:00:00]} Nxd8 {[%emt 0:00:00]} 13. Nc3 {[%emt 0:00:00]} Nbc6 {[%emt 0:04:00]} 14. Na4 {[%emt 0:05:00]} b5 {[%emt 0:00:00]} 15. cxb5 {[%emt 0:00:00]} axb5 {[%emt 0:00:00]} 16. Nb6 {[%emt 0:00:00]} Rb8 {[%emt 0:00:00]} 17. Nxc8 {[%emt 0:00:00]} Rxc8 {[%emt 0:00:00]} 18. Bd3 {[%emt 0:00:00]} Rb8 {[%emt 0:02:30]} 19. Bf4 {[%emt 0:00:00]} Rb7 {[%emt 0:00:00]} 20. a3 {[%emt 0:00:00]} Bf6 {[%emt 0:00:00]} 21. Rab1 {[%emt 0:00:00]} e5 {[%emt 0:01:30]} 22. Rfe1 {[%emt 0:00:00]} Re7 {[%emt 0:00:30]} 23. Be3 {[%emt 0:00:00]} e4 {[%emt 0:00:00]} 24. Bc5 {[%emt 0:05:00]} exd3 {[%emt 0:00:00]} 25. Bxe7 {[%emt 0:00:00]} Nxe7 {[%emt 0:00:00]} 26. Rbd1 {[%emt 0:01:00]} Ndc6 {[%emt 0:02:00]} 27. Rxd3 {[%emt 0:00:30]} Kf7 {[%emt 0:00:30]} 28. b4 {[%emt 0:00:00]} Ra8 {[%emt 0:00:30]} 29. h4 {[%emt 0:00:00]} h6 {[%emt 0:00:30]} 30. Re2 {[%emt 0:01:30]} g5 {[%emt 0:00:00]} 31. hxg5 {[%emt 0:00:00]} hxg5 {[%emt 0:00:00]} 32. Rd6 {[%emt 0:00:00]} g4 {[%emt 0:00:00]} 33. Ree6 {[%emt 0:00:00]} Ng8 {[%emt 0:00:00]} 34. Rxc6 {[%emt 0:00:00]} gxf3 {[%emt 0:00:00]} 35. Ra6 {[%emt 0:00:00]} Rd8 {[%emt 0:03:00]} 36. Red6 {[%emt 0:00:00]} Re8 {[%emt 0:00:30]} 37. Rd7+ {[%emt 0:00:00]} Ne7 {[%emt 0:00:00]} 38. gxf3 {[%emt 0:00:00]} Rc8 {[%emt 0:01:00]} 39. Kg2 {[%emt 0:00:00]} Rc2 {[%emt 0:00:00]} 40. f4 {[%emt 0:05:00]} Bh4 {[%emt 0:01:00]} 41. Kh3 {[%emt 0:00:30]} Bxf2 {[%emt 0:00:00]} 42. Rh6 {[%emt 0:00:30]} Re2 {[%emt 0:01:00]} 43. Rh7+ {[%emt 0:00:00]} Ke8 {[%emt 0:00:00]} 44. Rb7 {[%emt 0:01:00]} Bd4 {[%emt 0:00:00]} 45. Rxb5 {[%emt 0:00:00]} Re3+ {[%emt 0:00:00]} 46. Kg2 {[%emt 0:00:00]} Re2+ {[%emt 0:00:00]} 47. Kf1 {[%emt 0:00:00]} Re4 {[%emt 0:00:00]} 48. a4 {[%emt 0:02:00]} Rxf4+ {[%emt 0:00:00]} 49. Ke2 {[%emt 0:00:00]} Re4+ {[%emt 0:00:00]} 50. Kd3 {[%emt 0:00:00]} Bf6 {[%emt 0:04:00]} 51. Rb6 {[%emt 0:00:00]} Rd4+ {[%emt 0:00:30]} 52. Kc2 {[%emt 0:00:00]} Rc4+ {[%emt 0:00:00]} 53. Kd1 {[%emt 0:00:00]} Bg5 {[%emt 0:00:00]} 54. a5 {[%emt 0:03:00]} Kd7 {[%emt 0:00:00]} 55. a6 {[%emt 0:00:30]} Rc1+ {[%emt 0:00:00]} 56. Ke2 {[%emt 0:00:00]} Ra1 {[%emt 0:00:00]} 57. b5 {[%emt 0:00:00]} Ra2+ {[%emt 0:00:00]} 58. Kd3 {[%emt 0:00:00]} Ra3+ {[%emt 0:00:00]} 59. Kc4 {[%emt 0:00:00]} f4 {[%emt 0:00:00]} 60. Rg6 {[%emt 0:00:00]} Bh4 {[%emt 0:04:30]} 61. Rg4 {[%emt 0:00:00]} Bf2 {[%emt 0:00:00]} 62. Rgg7 {[%emt 0:00:00]} Ra4+ {[%emt 0:00:00]} 63. Kb3 {[%emt 0:00:00]} Re4 {[%emt 0:00:00]} 64. Rg6 {[%emt 0:00:00]} Bc5 {[%emt 0:00:00]} 65. b6 {[%emt 0:00:02]} Rb4+ {[%emt 0:00:00]} 66. Kc3 {[%emt 0:05:28]} f3 {[%emt 0:03:00]} 67. Rf6 {[%emt 0:00:00]} f2 {[%emt 0:00:00]} 68. Rxf2 {[%emt 0:00:01]} Rxb6 {[%emt 0:00:00]} 69. Ra2 {[%emt 0:00:33]} Rb8 {[%emt 0:00:00]} 70. Kc4 {[%emt 0:01:26]} Rc8 {[%emt 0:00:00]} 71. Rd2+ {[%emt 0:00:30]} Bd6+ {[%emt 0:00:00]} 72. Kb5 {[%emt 0:00:00]} Rb8+ {[%emt 0:00:00]} 73. Ka5 {[%emt 0:01:00]} Ra8 {[%emt 0:00:00]} 74. Rd3 {[%emt 0:00:00]} Kc6 {[%emt 0:00:00]} 75. Rh6 {[%emt 0:00:20]} Nc8 {[%emt 0:00:00]} 76. Rc3+ {[%emt 0:00:09]} Kd7 {[%emt 0:00:00]} 77. Rh7+ {[%emt 0:00:18]} Be7 {[%emt 0:00:00]} 78. Rd3+ {[%emt 0:00:15]} Kc6 {[%emt 0:00:00]} 79. Rh8 {[%emt 0:00:24]} Bd6 {[%emt 0:06:30]} 80. Rc3+ {[%emt 0:00:24]} Kd7 {[%emt 0:00:00]} 81. Rh7+ {[%emt 0:00:30]} Be7 {[%emt 0:01:00]} 82. Rd3+ {[%emt 0:00:31]} Kc6 {[%emt 0:00:00]} 83. Rc3+ {[%emt 0:02:09]} Kd7 {[%emt 0:00:00]} 84. Rd3+ {[%emt 0:00:30]} Kc6 {[%emt 0:00:00]} 85. Rc3+ {[%emt 0:00:00]} 1/2-1/2

[Event "Lliga Catalana 2024"]
[Site "Catalonia"]
[Date "2024.02.17"]
[Round "5.4"]
[White "Alfaro Rojas, Alfonso Jose"]
[Black "Ubach Miralda, Marcelo"]
[Result "1/2-1/2"]
[ECO "A11"]
[WhiteElo "2301"]
[BlackElo "2230"]
[Annotator "TA"]
[PlyCount "82"]
[EventDate "2024.01.18"]
[EventType "team-tourn"]
[EventCountry "ESP"]
[SourceTitle "playchess.com"]
[Source "ChessBase"]
[SourceQuality "1"]
[TimeControl "5400+30"]

{[%evp 10,82,26,18,29,19,41,-4,-20,0,20,-17,-13,-14,-14,-14,0,0,-2,-17,0,-25,-16,-43,-12,-61,-64,-77,-56,-77,-44,-50,-44,-58,-14,-15,-18,-11,-15,-23,7,-6,20,23,27,20,9,14,42,10,9,8,8,4,8,10,47,0,50,-22,-10,-29,-22,-36,-10,-26,-22,-29,-32,-30,-29,-31,0,0,0]} 1. Nf3 {[%emt 0:00:44]} d5 {[%emt 0:03:14]} 2. g3 {[%emt 0:00:14]} Nf6 {[%emt 0:00:32]} 3. Bg2 {[%emt 0:00:11]} Bf5 {[%emt 0:00:31]} 4. c4 {[%emt 0:00:31]} c6 {[%emt 0:01:10]} 5. Qb3 {[%emt 0:00:38]} Qb6 {[%emt 0:01:13]} 6. d3 {[%emt 0:00:17]} e6 {[%emt 0:03:38]} 7. Be3 {[%emt 0:00:37]} (7. O-O {simplifies} Qxb3 8. axb3 h5 9. Be3) 7... dxc4 {[%emt 0:05:03]} 8. dxc4 {[%emt 0:05:21]} Qxb3 {[%emt 0:04:53]} 9. axb3 {[%emt 0:00:03]} a6 {[%emt 0:03:15]} 10. Nc3 {[%emt 0:04:28]} Nbd7 {[%emt 0:01:54]} 11. O-O {[%emt 0:02:01]} Be7 {[%emt 0:01:01]} 12. h3 {[%emt 0:34:15]} O-O {[%emt 0:12:23]} 13. g4 {[%emt 0:00:13]} Bg6 {[%emt 0:00:21]} 14. Nd2 {[%emt 0:11:23]} Rad8 {[%emt 0:06:22]} 15. f4 {[%emt 0:08:19]} h6 {[%emt 0:04:13]} 16. Kf2 {[%emt 0:03:44]} Bb4 {[%emt 0:04:40]} 17. Nde4 {[%emt 0:26:01] Prevents Nc5} (17. Na2 $11 Bxd2 18. Bxd2) 17... Nxe4+ $15 {[%emt 0:03:30]} 18. Nxe4 {[%emt 0:00:00]} f5 {[%emt 0:01:06]} 19. gxf5 {[%emt 0:00:00]} Bxf5 {[%emt 0:00:25] ...e5 is the strong threat.} 20. Rad1 {[%emt 0:00:00]} e5 {[%emt 0:10:37] aiming for ...exf4.} 21. Kg3 {[%emt 0:00:00]} Rde8 {[%emt 0:05:38] [#] Threatens to win with ...Bxe4.} 22. fxe5 $1 {[%emt 0:00:00][%cal Of1f5]} Nxe5 {[%emt 0:00:21]} 23. Bc5 $1 {[%emt 0:00:00]} Bxc5 {[%emt 0:03:57]} 24. Nxc5 {[%emt 0:00:00]} b6 {[%emt 0:01:11]} 25. Ne4 {[%emt 0:00:00]} Ng6 {[%emt 0:12:01]} (25... Bxe4 {simplifies} 26. Bxe4 Rxf1 27. Rxf1 Re7) 26. Nd6 {[%emt 0:00:00][%csl LRc6,LRe8,LRf5]} Re3+ {[%emt 0:00:52]} 27. Rf3 {[%emt 0:00:00]} Rxf3+ {[%emt 0:01:31]} 28. Bxf3 {[%emt 0:00:00]} Bd7 {[%emt 0:01:54]} 29. c5 {[%emt 0:00:00]} bxc5 {[%emt 0:01:56]} 30. Ne4 {[%emt 0:00:00][%csl LRc5,LRd7]} Ne5 {[%emt 0:02:06]} 31. Nxc5 {[%emt 0:00:00]} Bf5 {[%emt 0:00:31]} 32. Bg2 {[%emt 0:00:00]} Rb8 {[%emt 0:00:35]} 33. Rc1 {[%emt 0:00:00]} ({Much weaker is} 33. Nxa6 Rxb3+ 34. Kf4 Ng6+ 35. Kxf5 Nh4+ 36. Ke5 Nxg2 $11) (33. e4 $14 {feels stronger.} Bg6 34. Bf1) 33... Kf7 {[%emt 0:01:21]} (33... g5 $11) 34. e4 {[%emt 0:00:00]} ({White should play} 34. Rf1 $1 $14 Kg6 35. e4) 34... Be6 {[%emt 0:00:36]} 35. Rc3 {[%emt 0:00:00]} a5 {[%emt 0:00:21]} 36. Bf1 {[%emt 0:03:11]} Rb4 {[%emt 0:00:54]} 37. Be2 {[%emt 0:00:23]} g5 {[%emt 0:00:34]} 38. h4 {[%emt 0:01:53]} Ke7 {[%emt 0:00:47]} 39. hxg5 {[%emt 0:01:19]} hxg5 {[%emt 0:00:06]} 40. Kf2 {[%emt 0:00:23]} a4 41. bxa4 Rxb2 {[%emt 0:03:47] Weighted Error Value: White=0.14 (very precise) /Black=0.14 (very precise) .  Mistake:       	White=3     	Black=1      Inaccurate:     	White=4     	Black=9      OK:         	White=10    	Black=14     Best:        	White=2     	Black=1      Strong:       	White=2     	---} 1/2-1/2